[Event "*** Titled Tuesday Blitz AM"]
[Site "Chess.com"]
[Date "2020.01.07"]
[Round "1"]
[White "Ariadna_Atreides"]
[Black "SiddharthGMJagadeesh"]
[Result "1/2-1/2"]
[WhiteElo "2063"]
[BlackElo "2554"]
[TimeControl "180+2"]
[EndTime "9:11:41 PST"]
[Termination "Game drawn by agreement"]

1. d4 {[%clk 0:02:54.3]} 1... Nf6 {[%clk 0:02:59.5]} 2. Nf3 {[%clk 0:02:54.5]}
2... e6 {[%clk 0:03:01.4]} 3. e3 {[%clk 0:02:54.7]} 3... b6 {[%clk 0:01:32.7]}
4. Bd3 {[%clk 0:02:52]} 4... Bb7 {[%clk 0:01:31.6]} 5. O-O {[%clk 0:02:52]} 5...
g6 {[%clk 0:01:27.9]} 6. b3 {[%clk 0:02:51.5]} 6... Bg7 {[%clk 0:01:25.7]} 7.
Bb2 {[%clk 0:02:52.8]} 7... O-O {[%clk 0:01:24.6]} 8. Nbd2 {[%clk 0:02:47.3]}
8... d5 {[%clk 0:01:19.8]} 9. Ne5 {[%clk 0:02:44.5]} 9... Nbd7 {[%clk
0:01:18.4]} 10. f4 {[%clk 0:02:26.3]} 10... c5 {[%clk 0:01:18]} 11. Qe2 {[%clk
0:02:19]} 11... Ne4 {[%clk 0:01:17.6]} 12. Nxe4 {[%clk 0:02:05.4]} 12... dxe4
{[%clk 0:01:16.9]} 13. Bc4 {[%clk 0:02:05.7]} 13... a6 {[%clk 0:01:17.8]} 14. a4
{[%clk 0:02:05.6]} 14... Qc7 {[%clk 0:01:17.5]} 15. Rfd1 {[%clk 0:01:55.9]}
15... Rfd8 {[%clk 0:01:06.9]} 16. Rd2 {[%clk 0:01:31.1]} 16... cxd4 {[%clk
0:00:59.4]} 17. exd4 {[%clk 0:01:23]} 17... Nf6 {[%clk 0:00:57.4]} 18. Qe3
{[%clk 0:01:09.8]} 18... Rac8 {[%clk 0:00:43.9]} 19. Rad1 {[%clk 0:00:58.3]}
19... Nd5 {[%clk 0:00:43]} 20. Bxd5 {[%clk 0:00:53.3]} 20... exd5 {[%clk
0:00:42.7]} 21. Ng4 {[%clk 0:00:34.3]} 21... h5 {[%clk 0:00:41.3]} 22. Nf2
{[%clk 0:00:34.4]} 22... Bh6 {[%clk 0:00:42.5]} 23. g3 {[%clk 0:00:33.4]} 23...
b5 {[%clk 0:00:32.7]} 24. axb5 {[%clk 0:00:31.6]} 24... axb5 {[%clk 0:00:34.6]}
25. Nh3 {[%clk 0:00:30.4]} 25... Qd7 {[%clk 0:00:28.2]} 26. Kg2 {[%clk
0:00:25.5]} 26... Rc7 {[%clk 0:00:24.7]} 27. Ba3 {[%clk 0:00:16]} 27... Rdc8
{[%clk 0:00:22.3]} 28. Bc5 {[%clk 0:00:16.2]} 28... Bg7 {[%clk 0:00:18.9]} 29.
b4 {[%clk 0:00:16.2]} 29... Ra8 {[%clk 0:00:17.3]} 30. Ng5 {[%clk 0:00:13.3]}
30... f6 {[%clk 0:00:17.7]} 31. Nh3 {[%clk 0:00:13.1]} 31... Bc8 {[%clk
0:00:14.7]} 32. Nf2 {[%clk 0:00:13.2]} 32... Ra4 {[%clk 0:00:14.1]} 33. c3
{[%clk 0:00:10.6]} 33... Ra3 {[%clk 0:00:14.8]} 34. Rc2 {[%clk 0:00:10.4]} 34...
Rc6 {[%clk 0:00:15.5]} 35. Rdd2 {[%clk 0:00:09.9]} 35... Qb7 {[%clk 0:00:16.6]}
36. Ra2 {[%clk 0:00:09.8]} 36... Qa6 {[%clk 0:00:16.1]} 37. Rxa3 {[%clk
0:00:09.9]} 37... Qxa3 {[%clk 0:00:18]} 38. Rc2 {[%clk 0:00:10.9]} 38... Bf5
{[%clk 0:00:18.5]} 39. Nd1 {[%clk 0:00:10.7]} 39... Bh6 {[%clk 0:00:19.1]} 40.
Qc1 {[%clk 0:00:10.2]} 40... Qxc1 {[%clk 0:00:13.9]} 41. Rxc1 {[%clk 0:00:10.7]}
41... g5 {[%clk 0:00:15.8]} 42. Ne3 {[%clk 0:00:09.4]} 42... Be6 {[%clk
0:00:15]} 43. fxg5 {[%clk 0:00:09.9]} 43... Bxg5 {[%clk 0:00:16.1]} 44. Re1
{[%clk 0:00:10.6]} 44... Bxe3 {[%clk 0:00:16.9]} 45. Rxe3 {[%clk 0:00:10.7]}
45... Ra6 {[%clk 0:00:05.7]} 46. Re2 {[%clk 0:00:11.6]} 46... Ra3 {[%clk
0:00:06.3]} 47. Rc2 {[%clk 0:00:11.2]} 47... Bf5 {[%clk 0:00:07.5]} 48. Rc1
{[%clk 0:00:09.5]} 48... Ra2+ {[%clk 0:00:08.9]} 49. Kg1 {[%clk 0:00:08.8]}
49... e3 {[%clk 0:00:10.3]} 50. Re1 {[%clk 0:00:08]} 50... e2 {[%clk 0:00:09.1]}
51. Kf2 {[%clk 0:00:07.9]} 51... Bg4 {[%clk 0:00:09.9]} 52. h3 {[%clk
0:00:08.1]} 52... Bxh3 {[%clk 0:00:11.1]} 53. Rxe2 {[%clk 0:00:09.3]} 53...
Rxe2+ {[%clk 0:00:13]} 54. Kxe2 {[%clk 0:00:09.9]} 54... Kf7 {[%clk 0:00:14.9]}
55. Kf3 {[%clk 0:00:10.7]} 55... Ke6 {[%clk 0:00:16.4]} 56. Bb6 {[%clk 0:00:11]}
56... Kf5 {[%clk 0:00:16.5]} 57. Bc7 {[%clk 0:00:11.8]} 57... Bg4+ {[%clk
0:00:17.7]} 58. Ke3 {[%clk 0:00:10.7]} 58... Bd1 {[%clk 0:00:19.6]} 59. Bf4
{[%clk 0:00:09.9]} 59... Kg4 {[%clk 0:00:20.6]} 60. Bd6 {[%clk 0:00:09.8]} 60...
Bc2 {[%clk 0:00:21.5]} 61. Bc7 {[%clk 0:00:10.3]} 61... Be4 {[%clk 0:00:23.4]}
62. Bd6 {[%clk 0:00:10.8]} 62... Bh1 {[%clk 0:00:24.6]} 63. Bc7 {[%clk
0:00:11.6]} 63... Bg2 {[%clk 0:00:26.2]} 64. Bd6 {[%clk 0:00:12.2]} 64... Bf1
{[%clk 0:00:27.8]} 65. Bc7 {[%clk 0:00:12.8]} 65... Bc4 {[%clk 0:00:29.5]} 66.
Bd6 {[%clk 0:00:13.5]} 66... Bb3 {[%clk 0:00:30.9]} 67. Bc7 {[%clk 0:00:14.4]}
67... Bc2 {[%clk 0:00:32.5]} 68. Bd6 {[%clk 0:00:15.2]} 68... Bh7 {[%clk
0:00:27.1]} 69. Bc7 {[%clk 0:00:15.8]} 69... Bf5 {[%clk 0:00:27.3]} 70. Bd6
{[%clk 0:00:16.4]} 70... Bd7 {[%clk 0:00:29.2]} 71. Bc7 {[%clk 0:00:17.2]} 71...
h4 {[%clk 0:00:30.7]} 72. gxh4 {[%clk 0:00:15.2]} 72... Kxh4 {[%clk 0:00:32.6]}
73. Kf4 {[%clk 0:00:15.2]} 73... Kh5 {[%clk 0:00:32.6]} 74. Bd6 {[%clk
0:00:15.1]} 74... Kg6 {[%clk 0:00:33.7]} 75. Be7 {[%clk 0:00:15.4]} 75... Kf7
{[%clk 0:00:33.8]} 76. Bd6 {[%clk 0:00:16.2]} 76... Ke6 {[%clk 0:00:34.7]} 77.
Bc5 {[%clk 0:00:16.1]} 77... Be8 {[%clk 0:00:36.1]} 78. Bb6 {[%clk 0:00:16.5]}
78... Bg6 {[%clk 0:00:37.6]} 79. Bc5 {[%clk 0:00:17]} 79... Bd3 {[%clk
0:00:39.1]} 80. Bb6 {[%clk 0:00:17.5]} 80... Bc4 {[%clk 0:00:41]} 81. Bc5 {[%clk
0:00:18.4]} 81... Bd3 {[%clk 0:00:42.9]} 82. Bb6 {[%clk 0:00:17.8]} 82... Bc4
{[%clk 0:00:44.8]} 83. Bc5 {[%clk 0:00:18.7]} 83... Ba2 {[%clk 0:00:46.7]} 84.
Bf8 {[%clk 0:00:19.4]} 84... Bb1 {[%clk 0:00:48.2]} 85. Bc5 {[%clk 0:00:19.8]}
85... Bh7 {[%clk 0:00:49.8]} 86. Bf8 {[%clk 0:00:20.1]} 86... Be4 {[%clk
0:00:47.6]} 87. Bc5 {[%clk 0:00:20.2]} 1/2-1/2

[Event "*** Titled Tuesday Blitz AM"]
[Site "Chess.com"]
[Date "2020.01.07"]
[Round "1"]
[White "ChessFunMaker"]
[Black "Leonid_Starozhilov"]
[Result "1/2-1/2"]
[WhiteElo "2358"]
[BlackElo "2706"]
[TimeControl "180+2"]
[EndTime "9:11:58 PST"]
[Termination "Game drawn - insufficient material"]

1. c4 {[%clk 0:03:01.5]} 1... Nf6 {[%clk 0:03:00.7]} 2. g3 {[%clk 0:03:03]} 2...
g6 {[%clk 0:03:01]} 3. Bg2 {[%clk 0:03:04.6]} 3... Bg7 {[%clk 0:03:01.7]} 4. Nc3
{[%clk 0:03:06.2]} 4... O-O {[%clk 0:03:03.3]} 5. e4 {[%clk 0:03:07.8]} 5... c5
{[%clk 0:03:03.8]} 6. Nge2 {[%clk 0:03:09.2]} 6... Nc6 {[%clk 0:03:05]} 7. O-O
{[%clk 0:03:10.5]} 7... d6 {[%clk 0:03:06.6]} 8. d3 {[%clk 0:03:12.2]} 8... a6
{[%clk 0:03:04]} 9. h3 {[%clk 0:03:13.3]} 9... Rb8 {[%clk 0:03:05.1]} 10. a4
{[%clk 0:03:15]} 10... Ne8 {[%clk 0:03:02.2]} 11. Be3 {[%clk 0:03:16.2]} 11...
Nd4 {[%clk 0:02:59.5]} 12. Rb1 {[%clk 0:02:53.9]} 12... Nxe2+ {[%clk 0:02:25.5]}
13. Nxe2 {[%clk 0:02:49.6]} 13... b5 {[%clk 0:02:22.3]} 14. cxb5 {[%clk
0:02:14.4]} 14... axb5 {[%clk 0:02:24.2]} 15. d4 {[%clk 0:02:15.2]} 15... bxa4
{[%clk 0:01:40.7]} 16. Qxa4 {[%clk 0:02:05.9]} 16... Bd7 {[%clk 0:01:39.4]} 17.
Qc2 {[%clk 0:02:02.1]} 17... cxd4 {[%clk 0:01:35.2]} 18. Bxd4 {[%clk 0:01:56.7]}
18... Bxd4 {[%clk 0:01:28.9]} 19. Nxd4 {[%clk 0:01:57.6]} 19... Qb6 {[%clk
0:01:29.8]} 20. Rfd1 {[%clk 0:01:52.3]} 20... Nf6 {[%clk 0:01:29.3]} 21. Qe2
{[%clk 0:01:45.2]} 21... Bb5 {[%clk 0:01:09.7]} 22. Qe3 {[%clk 0:01:28.3]} 22...
Rfd8 {[%clk 0:00:48.1]} 23. e5 {[%clk 0:01:15]} 23... dxe5 {[%clk 0:00:47.2]}
24. Qxe5 {[%clk 0:01:16.2]} 24... Ba4 {[%clk 0:00:32.5]} 25. b3 {[%clk
0:01:09.6]} 25... Be8 {[%clk 0:00:31.4]} 26. Rbc1 {[%clk 0:00:18.5]} 26... Qd6
{[%clk 0:00:29.9]} 27. Qe2 {[%clk 0:00:12.9]} 27... Qb4 {[%clk 0:00:23.5]} 28.
Rc4 {[%clk 0:00:07.4]} 28... Qd6 {[%clk 0:00:18.7]} 29. Rdc1 {[%clk 0:00:08.5]}
29... e5 {[%clk 0:00:18.1]} 30. Nc6 {[%clk 0:00:09.7]} 30... Bxc6 {[%clk
0:00:15.3]} 31. Rxc6 {[%clk 0:00:11.6]} 31... Qe7 {[%clk 0:00:16.7]} 32. Rc7
{[%clk 0:00:10.6]} 32... Rd7 {[%clk 0:00:17.7]} 33. Rc8+ {[%clk 0:00:05.9]}
33... Rxc8 {[%clk 0:00:16.5]} 34. Rxc8+ {[%clk 0:00:07.8]} 34... Kg7 {[%clk
0:00:18.2]} 35. Qc4 {[%clk 0:00:09.3]} 35... Rd8 {[%clk 0:00:15.2]} 36. Rc7
{[%clk 0:00:10]} 36... Rd7 {[%clk 0:00:16.7]} 37. Rxd7 {[%clk 0:00:09.1]} 37...
Qxd7 {[%clk 0:00:16.9]} 38. b4 {[%clk 0:00:10.2]} 38... Qd4 {[%clk 0:00:16]} 39.
Qxd4 {[%clk 0:00:05.6]} 39... exd4 {[%clk 0:00:17.9]} 40. Kf1 {[%clk 0:00:06.9]}
40... Nd7 {[%clk 0:00:17.3]} 41. Ke2 {[%clk 0:00:08.1]} 41... Kf6 {[%clk
0:00:18.7]} 42. Kd3 {[%clk 0:00:09.5]} 42... Ke5 {[%clk 0:00:18.8]} 43. Bc6
{[%clk 0:00:06]} 43... Nb6 {[%clk 0:00:16.3]} 44. Be8 {[%clk 0:00:04.8]} 44...
f6 {[%clk 0:00:16.2]} 45. f4+ {[%clk 0:00:05.7]} 45... Kd5 {[%clk 0:00:14.3]}
46. Bf7+ {[%clk 0:00:07.2]} 46... Kd6 {[%clk 0:00:15.8]} 47. Kxd4 {[%clk
0:00:07.8]} 47... Nd7 {[%clk 0:00:15.3]} 48. Bg8 {[%clk 0:00:07.8]} 48... h6
{[%clk 0:00:16.4]} 49. Bf7 {[%clk 0:00:06.3]} 49... g5 {[%clk 0:00:17.8]} 50.
Be8 {[%clk 0:00:05.5]} 50... Nb6 {[%clk 0:00:18.5]} 51. Bb5 {[%clk 0:00:06.4]}
51... Nd5 {[%clk 0:00:19.5]} 52. fxg5 {[%clk 0:00:05.6]} 52... fxg5 {[%clk
0:00:20.4]} 53. Kc4 {[%clk 0:00:05.8]} 53... Ne3+ {[%clk 0:00:20.3]} 54. Kc3
{[%clk 0:00:05.2]} 54... Nd5+ {[%clk 0:00:18.8]} 55. Kb3 {[%clk 0:00:05]} 55...
Ke5 {[%clk 0:00:20.2]} 56. Bc6 {[%clk 0:00:03.5]} 56... Ne3 {[%clk 0:00:16.5]}
57. b5 {[%clk 0:00:04.5]} 57... Kd6 {[%clk 0:00:17.8]} 58. Kb4 {[%clk
0:00:04.2]} 58... Nf5 {[%clk 0:00:17.3]} 59. g4 {[%clk 0:00:03.9]} 59... Nd4
{[%clk 0:00:16.6]} 60. Bg2 {[%clk 0:00:04.2]} 60... Nc2+ {[%clk 0:00:18]} 61.
Ka5 {[%clk 0:00:05.4]} 61... Kc7 {[%clk 0:00:19.4]} 62. b6+ {[%clk 0:00:06.5]}
62... Kb8 {[%clk 0:00:21]} 63. Kb5 {[%clk 0:00:06.7]} 63... Nd4+ {[%clk
0:00:21.5]} 64. Kc5 {[%clk 0:00:07.8]} 64... Ne2 {[%clk 0:00:22.8]} 65. Kd6
{[%clk 0:00:06.7]} 65... Nf4 {[%clk 0:00:23]} 66. Bf1 {[%clk 0:00:07.9]} 66...
Kb7 {[%clk 0:00:24.2]} 67. Ke7 {[%clk 0:00:07.1]} 67... h5 {[%clk 0:00:25.7]}
68. Kf6 {[%clk 0:00:06.5]} 68... hxg4 {[%clk 0:00:26.8]} 69. hxg4 {[%clk
0:00:07.9]} 69... Kxb6 {[%clk 0:00:27.8]} 70. Kxg5 {[%clk 0:00:09.3]} 70... Nd5
{[%clk 0:00:26.8]} 71. Kh6 {[%clk 0:00:04.2]} 71... Kc7 {[%clk 0:00:18.8]} 72.
g5 {[%clk 0:00:04.3]} 72... Nf4 {[%clk 0:00:13.3]} 73. Kg7 {[%clk 0:00:03.5]}
73... Kd6 {[%clk 0:00:14.8]} 74. Kf6 {[%clk 0:00:05]} 74... Nh5+ {[%clk
0:00:15.6]} 75. Kf7 {[%clk 0:00:04.8]} 75... Nf4 {[%clk 0:00:15]} 76. Kf6 {[%clk
0:00:06.2]} 76... Nh5+ {[%clk 0:00:11.3]} 77. Kf7 {[%clk 0:00:06.7]} 77... Nf4
{[%clk 0:00:11.1]} 78. Bc4 {[%clk 0:00:05.3]} 78... Ke5 {[%clk 0:00:12.2]} 79.
Bb3 {[%clk 0:00:02.5]} 79... Kd6 {[%clk 0:00:05.5]} 80. Bc2 {[%clk 0:00:02.8]}
80... Ke5 {[%clk 0:00:06.5]} 81. g6 {[%clk 0:00:03.5]} 81... Nxg6 {[%clk
0:00:07.6]} 1/2-1/2

[Event "*** Titled Tuesday Blitz AM"]
[Site "Chess.com"]
[Date "2020.01.07"]
[Round "1"]
[White "Msb2"]
[Black "Oligan22"]
[Result "1/2-1/2"]
[WhiteElo "2861"]
[BlackElo "2483"]
[TimeControl "180+2"]
[EndTime "9:11:59 PST"]
[Termination "Game drawn by repetition"]

1. d4 {[%clk 0:03:01.9]} 1... d5 {[%clk 0:03:00.3]} 2. c4 {[%clk 0:02:55.1]}
2... e6 {[%clk 0:03:01]} 3. Nc3 {[%clk 0:02:55.7]} 3... a6 {[%clk 0:03:01.9]} 4.
cxd5 {[%clk 0:02:54.6]} 4... exd5 {[%clk 0:03:03.3]} 5. Qb3 {[%clk 0:02:56.3]}
5... c6 {[%clk 0:03:03]} 6. e4 {[%clk 0:02:56.7]} 6... dxe4 {[%clk 0:03:03]} 7.
Bc4 {[%clk 0:02:58.2]} 7... Qe7 {[%clk 0:03:03.4]} 8. a4 {[%clk 0:02:59.2]} 8...
Nf6 {[%clk 0:02:52.9]} 9. Bg5 {[%clk 0:02:59.1]} 9... Bf5 {[%clk 0:02:31.1]} 10.
Bxf6 {[%clk 0:02:52.3]} 10... gxf6 {[%clk 0:02:32.2]} 11. Nge2 {[%clk
0:02:52.6]} 11... Bg6 {[%clk 0:02:11.6]} 12. O-O {[%clk 0:02:50.4]} 12... Bg7
{[%clk 0:02:09.3]} 13. Ng3 {[%clk 0:02:49.1]} 13... f5 {[%clk 0:02:05.5]} 14.
Nce2 {[%clk 0:02:46.8]} 14... O-O {[%clk 0:02:05.1]} 15. f3 {[%clk 0:02:42]}
15... b5 {[%clk 0:01:29.6]} 16. axb5 {[%clk 0:02:42]} 16... cxb5 {[%clk
0:01:31.5]} 17. Bd5 {[%clk 0:02:32.6]} 17... Ra7 {[%clk 0:01:23.9]} 18. fxe4
{[%clk 0:02:33.7]} 18... fxe4 {[%clk 0:01:24.7]} 19. Kh1 {[%clk 0:02:34.6]}
19... Nd7 {[%clk 0:01:22.3]} 20. Rae1 {[%clk 0:02:13.9]} 20... Nf6 {[%clk
0:01:23]} 21. Nf4 {[%clk 0:02:13.5]} 21... Nxd5 {[%clk 0:01:18.4]} 22. Qxd5
{[%clk 0:01:53.7]} 22... Rd7 {[%clk 0:01:09.7]} 23. Nf5 {[%clk 0:01:30.6]} 23...
Bxf5 {[%clk 0:00:20.8]} 24. Qxf5 {[%clk 0:01:32.5]} 24... Rxd4 {[%clk
0:00:19.9]} 25. Nh5 {[%clk 0:01:30.6]} 25... Qe5 {[%clk 0:00:21.1]} 26. Qg4
{[%clk 0:01:30.6]} 26... Kh8 {[%clk 0:00:20]} 27. Rf5 {[%clk 0:01:30.9]} 27...
e3 {[%clk 0:00:13]} 28. Qh3 {[%clk 0:01:02.3]} 28... Qe6 {[%clk 0:00:14.2]} 29.
Nxg7 {[%clk 0:00:53.4]} 29... Kxg7 {[%clk 0:00:16.1]} 30. Qg3+ {[%clk
0:00:55.1]} 30... Kh8 {[%clk 0:00:17]} 31. Re5 {[%clk 0:00:56.6]} 31... Qg6
{[%clk 0:00:17.8]} 32. Qxe3 {[%clk 0:00:57.9]} 32... Rg4 {[%clk 0:00:16.1]} 33.
Qf3 {[%clk 0:00:55.1]} 33... Rg8 {[%clk 0:00:16.7]} 34. R5e2 {[%clk 0:00:54]}
34... Rg5 {[%clk 0:00:16.9]} 35. h3 {[%clk 0:00:52.2]} 35... Rf5 {[%clk
0:00:18.1]} 36. Qc3+ {[%clk 0:00:53]} 36... Qg7 {[%clk 0:00:18.1]} 37. Qd3
{[%clk 0:00:47.2]} 37... Qg6 {[%clk 0:00:19.1]} 38. Re8 {[%clk 0:00:44.3]} 38...
Rf2 {[%clk 0:00:15.3]} 39. Rxg8+ {[%clk 0:00:44.6]} 39... Kxg8 {[%clk
0:00:14.4]} 40. Re8+ {[%clk 0:00:28.3]} 40... Kg7 {[%clk 0:00:15.2]} 41. Qd4+
{[%clk 0:00:30.2]} 41... Qf6 {[%clk 0:00:16]} 42. Qg4+ {[%clk 0:00:28]} 42...
Qg6 {[%clk 0:00:16.9]} 43. Qd4+ {[%clk 0:00:20.2]} 43... Qf6 {[%clk 0:00:18.3]}
44. Qe3 {[%clk 0:00:20.2]} 44... Rf1+ {[%clk 0:00:18.8]} 45. Kh2 {[%clk
0:00:21.9]} 45... Qf4+ {[%clk 0:00:20.4]} 46. Qxf4 {[%clk 0:00:23.5]} 46... Rxf4
{[%clk 0:00:22.3]} 47. Ra8 {[%clk 0:00:25.4]} 47... Ra4 {[%clk 0:00:22.1]} 48.
Kg3 {[%clk 0:00:25.5]} 48... Ra2 {[%clk 0:00:22.5]} 49. b4 {[%clk 0:00:25.6]}
49... Ra3+ {[%clk 0:00:22.8]} 50. Kf4 {[%clk 0:00:26.7]} 50... Ra4 {[%clk
0:00:23.3]} 51. Kf5 {[%clk 0:00:28.1]} 51... Rxb4 {[%clk 0:00:23.9]} 52. Rxa6
{[%clk 0:00:29.4]} 52... Rb2 {[%clk 0:00:20.4]} 53. g4 {[%clk 0:00:30.6]} 53...
h6 {[%clk 0:00:21.4]} 54. Rb6 {[%clk 0:00:30]} 54... Rf2+ {[%clk 0:00:22.4]} 55.
Ke4 {[%clk 0:00:31.4]} 55... Rh2 {[%clk 0:00:22]} 56. Rxb5 {[%clk 0:00:31]}
56... Rxh3 {[%clk 0:00:23.3]} 57. Kf4 {[%clk 0:00:32.7]} 57... Rh1 {[%clk
0:00:24.1]} 58. Rb6 {[%clk 0:00:34.2]} 58... Rf1+ {[%clk 0:00:25.1]} 59. Kg3
{[%clk 0:00:35.5]} 59... Rg1+ {[%clk 0:00:26]} 60. Kf4 {[%clk 0:00:36.4]} 60...
Rf1+ {[%clk 0:00:27.4]} 61. Ke4 {[%clk 0:00:38]} 61... Rg1 {[%clk 0:00:28.4]}
62. Kf3 {[%clk 0:00:38.6]} 62... Rf1+ {[%clk 0:00:29.6]} 63. Kg2 {[%clk
0:00:40.2]} 63... Rf4 {[%clk 0:00:29.6]} 64. Kg3 {[%clk 0:00:41.2]} 64... Ra4
{[%clk 0:00:30.4]} 65. Rc6 {[%clk 0:00:41.8]} 65... Ra5 {[%clk 0:00:31.3]} 66.
Kh4 {[%clk 0:00:42.8]} 66... Ra4 {[%clk 0:00:32.2]} 67. Kh5 {[%clk 0:00:42.2]}
67... Ra5+ {[%clk 0:00:33.5]} 68. Kh4 {[%clk 0:00:43.7]} 68... Rb5 {[%clk
0:00:34.2]} 69. Ra6 {[%clk 0:00:43.5]} 69... Rc5 {[%clk 0:00:35.2]} 70. Ra3
{[%clk 0:00:42.2]} 70... Rb5 {[%clk 0:00:36.2]} 71. Re3 {[%clk 0:00:43.2]} 71...
Rc5 {[%clk 0:00:37]} 72. Kg3 {[%clk 0:00:43.5]} 72... Ra5 {[%clk 0:00:37.5]} 73.
Kf4 {[%clk 0:00:44.7]} 73... Ra4+ {[%clk 0:00:37.2]} 74. Kf3 {[%clk 0:00:45.6]}
74... Ra5 {[%clk 0:00:38.4]} 75. Rc3 {[%clk 0:00:46.4]} 75... Ra4 {[%clk
0:00:39.3]} 76. Rc5 {[%clk 0:00:47.3]} 76... Rb4 {[%clk 0:00:39.5]} 77. Kg3
{[%clk 0:00:48.7]} 77... Rb3+ {[%clk 0:00:37.6]} 78. Kh4 {[%clk 0:00:50.3]}
78... Rb1 {[%clk 0:00:38.3]} 79. Ra5 {[%clk 0:00:51.6]} 79... Rc1 {[%clk
0:00:39]} 80. Rb5 {[%clk 0:00:52]} 80... Rd1 {[%clk 0:00:39.8]} 81. g5 {[%clk
0:00:50.4]} 81... hxg5+ {[%clk 0:00:40.1]} 82. Kxg5 {[%clk 0:00:52.3]} 82...
Rg1+ {[%clk 0:00:40.4]} 83. Kf4 {[%clk 0:00:53.7]} 83... Rf1+ {[%clk 0:00:40.3]}
84. Kg4 {[%clk 0:00:54.9]} 84... Rg1+ {[%clk 0:00:39.7]} 85. Kf3 {[%clk
0:00:56]} 85... Rf1+ {[%clk 0:00:40.7]} 86. Kg2 {[%clk 0:00:57.4]} 86... Ra1
{[%clk 0:00:41.3]} 87. Rg5+ {[%clk 0:00:58.2]} 87... Kf6 {[%clk 0:00:41.8]} 88.
Rb5 {[%clk 0:01:00.1]} 88... Kg6 {[%clk 0:00:42.2]} 89. Rb6+ {[%clk 0:01:00.5]}
89... f6 {[%clk 0:00:43.5]} 90. Kf3 {[%clk 0:01:01.8]} 90... Kf5 {[%clk
0:00:43.3]} 91. Rb5+ {[%clk 0:01:03]} 91... Kg6 {[%clk 0:00:44.6]} 92. Rc5
{[%clk 0:01:04.9]} 92... Ra3+ {[%clk 0:00:45.5]} 93. Kf4 {[%clk 0:01:05.9]}
93... Ra4+ {[%clk 0:00:46.6]} 94. Kg3 {[%clk 0:01:07]} 94... f5 {[%clk
0:00:46.9]} 95. Rc8 {[%clk 0:01:07.4]} 95... Kf6 {[%clk 0:00:47.2]} 96. Rf8+
{[%clk 0:01:08]} 96... Ke5 {[%clk 0:00:48.4]} 97. Re8+ {[%clk 0:01:09.4]} 97...
Kf6 {[%clk 0:00:49.6]} 98. Rf8+ {[%clk 0:01:11]} 98... Ke5 {[%clk 0:00:50.5]}
99. Kf3 {[%clk 0:01:12.6]} 99... Ra3+ {[%clk 0:00:51.4]} 100. Kf2 {[%clk
0:01:14]} 100... Kf4 {[%clk 0:00:52.5]} 101. Rb8 {[%clk 0:01:13.9]} 101... Ra2+
{[%clk 0:00:53.6]} 102. Kf1 {[%clk 0:01:15.5]} 102... Kg3 {[%clk 0:00:51.4]}
103. Rb3+ {[%clk 0:01:16.2]} 103... Kg4 {[%clk 0:00:52.5]} 104. Rc3 {[%clk
0:01:16.4]} 104... f4 {[%clk 0:00:53.2]} 105. Rb3 {[%clk 0:01:17.6]} 105... Rc2
{[%clk 0:00:53]} 106. Ra3 {[%clk 0:01:18.4]} 106... Rb2 {[%clk 0:00:52.2]} 107.
Rc3 {[%clk 0:01:19.3]} 107... Rb1+ {[%clk 0:00:49]} 108. Kf2 {[%clk 0:01:20.3]}
108... Rb2+ {[%clk 0:00:50.2]} 109. Kf1 {[%clk 0:01:21.8]} 109... Rb1+ {[%clk
0:00:50.3]} 110. Kf2 {[%clk 0:01:23.3]} 110... Rb2+ {[%clk 0:00:51.3]} 111. Kf1
{[%clk 0:01:24.9]} 1/2-1/2